Workbook

Sheet Лист1
A1: Набор | C1: Шаг канавки, мм | D1: 6019
A2: 30 | C2: Требуемое отношение | D2: =D1/50000 -> 0.12038
A3: 31 | C3: Точность вычисления | D3: 5e-06
A4: 32
A5: 33 | C5: Гитара | D5: Значение | E5: Погрешность | F5: b | G5: d | H5: a | I5: c | J5: e | K5: a+b>=c+28 | L5: Условие 1 | M5: b+e<=c+d | N5: Условие 2
A6: 34 | C6: 60x88/30x34x43 | D6: 0.1203830369 | E6: =IF(ISBLANK(D6),"",ABS(D2-D6)) -> 3.036935705e-06 | F6: =IFERROR(MID(C6,1,SEARCH("x",C6)-1)*1,"") -> 60 | G6: =IFERROR(MID(C6,SEARCH("x",C6)+1,SEARCH("/",C6)-SEARCH("x",C6)-1)*1,"") -> 88 | H6: =IFERROR(MID(C6,SEARCH("/",C6)+1,SEARCH("x",C6,SEARCH("x",C6)+1)-SEARCH("/",C6)-1)*1,"") -> 30 | I6: =IFERROR(MID(C6,SEARCH("x",C6,SEARCH("x",C6)+1)+1,SEARCH("x",C6,SEARCH("x",C6,SEARCH("x",C6)+1)+1)-SEARCH("x",C6,SEARCH("x",C6)+1)-1)*1,"") -> 34 | J6: =IFERROR(MID(C6,SEARCH("x",C6,SEARCH("x",C6,SEARCH("x",C6)+1)+1)+1,LEN(C6)-SEARCH("x",C6,SEARCH("x",C6,SEARCH("x",C6)+1)+1))*1,"") -> 43 | K6: =IFERROR(IF((G6+H6)>=(I6+28),G6&"+"&H6&">="&I6&"+28",G6&"+"&H6&"<"&I6&"+28"),"") -> 88+30>=34+28 | L6: =IF(K6="","",IF(IFERROR(FIND(">",K6),0)>0,"ДА","НЕТ")) -> ДА | M6: =IFERROR(IF((F6+J6)<=(I6+G6),F6&"+"&J6&"<="&I6&"+"&G6,F6&"+"&J6&">"&I6&"+"&G6),"") -> 60+43<=34+88 | N6: =IF(M6="","",IF(IFERROR(FIND("<",M6),0)>0,"ДА","НЕТ")) -> ДА
A7: 35 | C7: 95x125/31x43x74 | D7: 0.1203848259 | E7: =IF(ISBLANK(D7),"",ABS($D$2-D7)) -> 4.825936214e-06 | F7: =IFERROR(MID(C7,1,SEARCH("x",C7)-1)*1,"") -> 95 | G7: =IFERROR(MID(C7,SEARCH("x",C7)+1,SEARCH("/",C7)-SEARCH("x",C7)-1)*1,"") -> 125 | H7: 31 | I7: 43 | J7: 74 | K7: =IFERROR(IF((G7+H7)>=(I7+28),G7&"+"&H7&">="&I7&"+28",G7&"+"&H7&"<"&I7&"+28"),"") -> 125+31>=43+28 | L7: =IF(K7="","",IF(IFERROR(FIND(">",K7),0)>0,"ДА","НЕТ")) -> ДА | M7: =IFERROR(IF((F7+J7)<=(I7+G7),F7&"+"&J7&"<="&I7&"+"&G7,F7&"+"&J7&">"&I7&"+"&G7),"") -> 95+74>43+125 | N7: =IF(M7="","",IF(IFERROR(FIND("<",M7),0)>0,"ДА","НЕТ")) -> НЕТ
A8: 36 | C8: 62x88/31x34x43 | D8: 0.1203830369 | E8: 3.036935705e-06 | F8: 62 | G8: 88 | H8: 31 | I8: 34 | J8: 43 | K8: 88+31>=34+28 | L8: ДА | M8: 62+43<=34+88 | N8: ДА
A9: 38 | C9: 64x88/32x34x43 | D9: 0.1203830369 | E9: 3.036935705e-06 | F9: 64 | G9: 88 | H9: 32 | I9: 34 | J9: 43 | K9: 88+32>=34+28 | L9: ДА | M9: 64+43<=34+88 | N9: ДА
A10: 39 | C10: 64x99/34x36x43 | D10: 0.1203830369 | E10: 3.036935705e-06 | F10: 64 | G10: 99 | H10: 34 | I10: 36 | J10: 43 | K10: 99+34>=36+28 | L10: ДА | M10: 64+43<=36+99 | N10: ДА
A11: 40 | C11: 70x88/34x35x43 | D11: 0.1203830369 | E11: 3.036935705e-06 | F11: 70 | G11: 88 | H11: 34 | I11: 35 | J11: 43 | K11: 88+34>=35+28 | L11: ДА | M11: 70+43<=35+88 | N11: ДА
A12: 41 | C12: 72x88/34x36x43 | D12: 0.1203830369 | E12: 3.036935705e-06 | F12: 72 | G12: 88 | H12: 34 | I12: 36 | J12: 43 | K12: 88+34>=36+28 | L12: ДА | M12: 72+43<=36+88 | N12: ДА
A13: 42 | C13: 76x88/34x38x43 | D13: 0.1203830369 | E13: 3.036935705e-06 | F13: 76 | G13: 88 | H13: 34 | I13: 38 | J13: 43 | K13: 88+34>=38+28 | L13: ДА | M13: 76+43<=38+88 | N13: ДА
A14: 43 | C14: 80x88/34x40x43 | D14: 0.1203830369 | E14: 3.036935705e-06 | F14: 80 | G14: 88 | H14: 34 | I14: 40 | J14: 43 | K14: 88+34>=40+28 | L14: ДА | M14: 80+43<=40+88 | N14: ДА
A15: 47 | C15: 88x100/34x43x50 | D15: 0.1203830369 | E15: 3.036935705e-06 | F15: 88 | G15: 100 | H15: 34 | I15: 43 | J15: 50 | K15: 100+34>=43+28 | L15: ДА | M15: 88+50<=43+100 | N15: ДА
A16: 50 | C16: 88x120/34x43x60 | D16: 0.1203830369 | E16: 3.036935705e-06 | F16: 88 | G16: 120 | H16: 34 | I16: 43 | J16: 60 | K16: 120+34>=43+28 | L16: ДА | M16: 88+60<=43+120 | N16: ДА
A17: 58 | C17: 88x124/34x43x62 | D17: 0.1203830369 | E17: 3.036935705e-06 | F17: 88 | G17: 124 | H17: 34 | I17: 43 | J17: 62 | K17: 124+34>=43+28 | L17: ДА | M17: 88+62<=43+124 | N17: ДА
A18: 60 | C18: 88x126/34x43x63 | D18: 0.1203830369 | E18: 3.036935705e-06 | F18: 88 | G18: 126 | H18: 34 | I18: 43 | J18: 63 | K18: 126+34>=43+28 | L18: ДА | M18: 88+63<=43+126 | N18: ДА
A19: 62 | C19: 124x125/30x58x74 | D19: 0.1203789997 | E19: 1.000310655e-06 | F19: 124 | G19: 125 | H19: 30 | I19: 58 | J19: 74 | K19: 125+30>=58+28 | L19: ДА | M19: 124+74>58+125 | N19: НЕТ
A20: 63 | C20: 64x108/30x33x58 | D20: 0.1203761755 | E20: 3.824451411e-06 | F20: 64 | G20: 108 | H20: 30 | I20: 33 | J20: 58 | K20: 108+30>=33+28 | L20: ДА | M20: 64+58<=33+108 | N20: ДА
A21: 64 | C21: 64x126/33x35x58 | D21: 0.1203761755 | E21: 3.824451411e-06 | F21: 64 | G21: 126 | H21: 33 | I21: 35 | J21: 58 | K21: 126+33>=35+28 | L21: ДА | M21: 64+58<=35+126 | N21: ДА
A22: 65 | C22: 124x126/32x39x104 | D22: 0.1203772189 | E22: 2.781065089e-06 | F22: 124 | G22: 126 | H22: 32 | I22: 39 | J22: 104 | K22: 126+32>=39+28 | L22: ДА | M22: 124+104>39+126 | N22: НЕТ
A23: 69
A24: 70
A25: 72
A26: 74
A27: 76
A28: 80
A29: 88
A30: 90
A31: 95
A32: 99
A33: 100
A34: 104
A35: 108
A36: 120
A37: 124
A38: 125
A39: 126
H70: =IFERROR(MID(C70,SEARCH("/",C70)+1,SEARCH("x",C70,SEARCH("x",C70)+1)-SEARCH("/",C70)-1)*1,"") ->  | I70: =IFERROR(MID(C70,SEARCH("x",C70,SEARCH("x",C70)+1)+1,SEARCH("x",C70,SEARCH("x",C70,SEARCH("x",C70)+1)+1)-SEARCH("x",C70,SEARCH("x",C70)+1)-1)*1,"") ->  | J70: =IFERROR(MID(C70,SEARCH("x",C70,SEARCH("x",C70,SEARCH("x",C70)+1)+1)+1,LEN(C70)-SEARCH("x",C70,SEARCH("x",C70,SEARCH("x",C70)+1)+1))*1,"") -> 
E71: =IF(ISBLANK(D71),"",ABS($D$2-D71)) ->  | F71: =IFERROR(MID(C71,1,SEARCH("x",C71)-1)*1,"") ->  | G71: =IFERROR(MID(C71,SEARCH("x",C71)+1,SEARCH("/",C71)-SEARCH("x",C71)-1)*1,"") ->  | K71: =IFERROR(IF((G71+H71)>=(I71+28),G71&"+"&H71&">="&I71&"+28",G71&"+"&H71&"<"&I71&"+28"),"") ->  | L71: =IF(K71="","",IF(IFERROR(FIND(">",K71),0)>0,"ДА","НЕТ")) ->  | M71: =IFERROR(IF((F71+J71)<=(I71+G71),F71&"+"&J71&"<="&I71&"+"&G71,F71&"+"&J71&">"&I71&"+"&G71),"") ->  | N71: =IF(M71="","",IF(IFERROR(FIND("<",M71),0)>0,"ДА","НЕТ")) -> 
H134: =IFERROR(MID(C134,SEARCH("/",C134)+1,SEARCH("x",C134,SEARCH("x",C134)+1)-SEARCH("/",C134)-1)*1,"") ->  | I134: =IFERROR(MID(C134,SEARCH("x",C134,SEARCH("x",C134)+1)+1,SEARCH("x",C134,SEARCH("x",C134,SEARCH("x",C134)+1)+1)-SEARCH("x",C134,SEARCH("x",C134)+1)-1)*1,"") ->  | J134: =IFERROR(MID(C134,SEARCH("x",C134,SEARCH("x",C134,SEARCH("x",C134)+1)+1)+1,LEN(C134)-SEARCH("x",C134,SEARCH("x",C134,SEARCH("x",C134)+1)+1))*1,"") -> 
E135: =IF(ISBLANK(D135),"",ABS($D$2-D135)) ->  | F135: =IFERROR(MID(C135,1,SEARCH("x",C135)-1)*1,"") ->  | G135: =IFERROR(MID(C135,SEARCH("x",C135)+1,SEARCH("/",C135)-SEARCH("x",C135)-1)*1,"") ->  | K135: =IFERROR(IF((G135+H135)>=(I135+28),G135&"+"&H135&">="&I135&"+28",G135&"+"&H135&"<"&I135&"+28"),"") ->  | L135: =IF(K135="","",IF(IFERROR(FIND(">",K135),0)>0,"ДА","НЕТ")) ->  | M135: =IFERROR(IF((F135+J135)<=(I135+G135),F135&"+"&J135&"<="&I135&"+"&G135,F135&"+"&J135&">"&I135&"+"&G135),"") ->  | N135: =IF(M135="","",IF(IFERROR(FIND("<",M135),0)>0,"ДА","НЕТ")) -> 
H198: =IFERROR(MID(C198,SEARCH("/",C198)+1,SEARCH("x",C198,SEARCH("x",C198)+1)-SEARCH("/",C198)-1)*1,"") ->  | I198: =IFERROR(MID(C198,SEARCH("x",C198,SEARCH("x",C198)+1)+1,SEARCH("x",C198,SEARCH("x",C198,SEARCH("x",C198)+1)+1)-SEARCH("x",C198,SEARCH("x",C198)+1)-1)*1,"") ->  | J198: =IFERROR(MID(C198,SEARCH("x",C198,SEARCH("x",C198,SEARCH("x",C198)+1)+1)+1,LEN(C198)-SEARCH("x",C198,SEARCH("x",C198,SEARCH("x",C198)+1)+1))*1,"") -> 
E199: =IF(ISBLANK(D199),"",ABS($D$2-D199)) ->  | F199: =IFERROR(MID(C199,1,SEARCH("x",C199)-1)*1,"") ->  | G199: =IFERROR(MID(C199,SEARCH("x",C199)+1,SEARCH("/",C199)-SEARCH("x",C199)-1)*1,"") ->  | K199: =IFERROR(IF((G199+H199)>=(I199+28),G199&"+"&H199&">="&I199&"+28",G199&"+"&H199&"<"&I199&"+28"),"") ->  | L199: =IF(K199="","",IF(IFERROR(FIND(">",K199),0)>0,"ДА","НЕТ")) ->  | M199: =IFERROR(IF((F199+J199)<=(I199+G199),F199&"+"&J199&"<="&I199&"+"&G199,F199&"+"&J199&">"&I199&"+"&G199),"") ->  | N199: =IF(M199="","",IF(IFERROR(FIND("<",M199),0)>0,"ДА","НЕТ")) -> 
H262: =IFERROR(MID(C262,SEARCH("/",C262)+1,SEARCH("x",C262,SEARCH("x",C262)+1)-SEARCH("/",C262)-1)*1,"") ->  | I262: =IFERROR(MID(C262,SEARCH("x",C262,SEARCH("x",C262)+1)+1,SEARCH("x",C262,SEARCH("x",C262,SEARCH("x",C262)+1)+1)-SEARCH("x",C262,SEARCH("x",C262)+1)-1)*1,"") ->  | J262: =IFERROR(MID(C262,SEARCH("x",C262,SEARCH("x",C262,SEARCH("x",C262)+1)+1)+1,LEN(C262)-SEARCH("x",C262,SEARCH("x",C262,SEARCH("x",C262)+1)+1))*1,"") -> 
E263: =IF(ISBLANK(D263),"",ABS($D$2-D263)) ->  | F263: =IFERROR(MID(C263,1,SEARCH("x",C263)-1)*1,"") ->  | G263: =IFERROR(MID(C263,SEARCH("x",C263)+1,SEARCH("/",C263)-SEARCH("x",C263)-1)*1,"") ->  | K263: =IFERROR(IF((G263+H263)>=(I263+28),G263&"+"&H263&">="&I263&"+28",G263&"+"&H263&"<"&I263&"+28"),"") ->  | L263: =IF(K263="","",IF(IFERROR(FIND(">",K263),0)>0,"ДА","НЕТ")) ->  | M263: =IFERROR(IF((F263+J263)<=(I263+G263),F263&"+"&J263&"<="&I263&"+"&G263,F263&"+"&J263&">"&I263&"+"&G263),"") ->  | N263: =IF(M263="","",IF(IFERROR(FIND("<",M263),0)>0,"ДА","НЕТ")) -> 
H326: =IFERROR(MID(C326,SEARCH("/",C326)+1,SEARCH("x",C326,SEARCH("x",C326)+1)-SEARCH("/",C326)-1)*1,"") ->  | I326: =IFERROR(MID(C326,SEARCH("x",C326,SEARCH("x",C326)+1)+1,SEARCH("x",C326,SEARCH("x",C326,SEARCH("x",C326)+1)+1)-SEARCH("x",C326,SEARCH("x",C326)+1)-1)*1,"") ->  | J326: =IFERROR(MID(C326,SEARCH("x",C326,SEARCH("x",C326,SEARCH("x",C326)+1)+1)+1,LEN(C326)-SEARCH("x",C326,SEARCH("x",C326,SEARCH("x",C326)+1)+1))*1,"") -> 
E327: =IF(ISBLANK(D327),"",ABS($D$2-D327)) ->  | F327: =IFERROR(MID(C327,1,SEARCH("x",C327)-1)*1,"") ->  | G327: =IFERROR(MID(C327,SEARCH("x",C327)+1,SEARCH("/",C327)-SEARCH("x",C327)-1)*1,"") ->  | K327: =IFERROR(IF((G327+H327)>=(I327+28),G327&"+"&H327&">="&I327&"+28",G327&"+"&H327&"<"&I327&"+28"),"") ->  | L327: =IF(K327="","",IF(IFERROR(FIND(">",K327),0)>0,"ДА","НЕТ")) ->  | M327: =IFERROR(IF((F327+J327)<=(I327+G327),F327&"+"&J327&"<="&I327&"+"&G327,F327&"+"&J327&">"&I327&"+"&G327),"") ->  | N327: =IF(M327="","",IF(IFERROR(FIND("<",M327),0)>0,"ДА","НЕТ")) -> 
H390: =IFERROR(MID(C390,SEARCH("/",C390)+1,SEARCH("x",C390,SEARCH("x",C390)+1)-SEARCH("/",C390)-1)*1,"") ->  | I390: =IFERROR(MID(C390,SEARCH("x",C390,SEARCH("x",C390)+1)+1,SEARCH("x",C390,SEARCH("x",C390,SEARCH("x",C390)+1)+1)-SEARCH("x",C390,SEARCH("x",C390)+1)-1)*1,"") ->  | J390: =IFERROR(MID(C390,SEARCH("x",C390,SEARCH("x",C390,SEARCH("x",C390)+1)+1)+1,LEN(C390)-SEARCH("x",C390,SEARCH("x",C390,SEARCH("x",C390)+1)+1))*1,"") -> 
E391: =IF(ISBLANK(D391),"",ABS($D$2-D391)) ->  | F391: =IFERROR(MID(C391,1,SEARCH("x",C391)-1)*1,"") ->  | G391: =IFERROR(MID(C391,SEARCH("x",C391)+1,SEARCH("/",C391)-SEARCH("x",C391)-1)*1,"") ->  | K391: =IFERROR(IF((G391+H391)>=(I391+28),G391&"+"&H391&">="&I391&"+28",G391&"+"&H391&"<"&I391&"+28"),"") ->  | L391: =IF(K391="","",IF(IFERROR(FIND(">",K391),0)>0,"ДА","НЕТ")) ->  | M391: =IFERROR(IF((F391+J391)<=(I391+G391),F391&"+"&J391&"<="&I391&"+"&G391,F391&"+"&J391&">"&I391&"+"&G391),"") ->  | N391: =IF(M391="","",IF(IFERROR(FIND("<",M391),0)>0,"ДА","НЕТ")) -> 
H454: =IFERROR(MID(C454,SEARCH("/",C454)+1,SEARCH("x",C454,SEARCH("x",C454)+1)-SEARCH("/",C454)-1)*1,"") ->  | I454: =IFERROR(MID(C454,SEARCH("x",C454,SEARCH("x",C454)+1)+1,SEARCH("x",C454,SEARCH("x",C454,SEARCH("x",C454)+1)+1)-SEARCH("x",C454,SEARCH("x",C454)+1)-1)*1,"") ->  | J454: =IFERROR(MID(C454,SEARCH("x",C454,SEARCH("x",C454,SEARCH("x",C454)+1)+1)+1,LEN(C454)-SEARCH("x",C454,SEARCH("x",C454,SEARCH("x",C454)+1)+1))*1,"") -> 
E455: =IF(ISBLANK(D455),"",ABS($D$2-D455)) ->  | F455: =IFERROR(MID(C455,1,SEARCH("x",C455)-1)*1,"") ->  | G455: =IFERROR(MID(C455,SEARCH("x",C455)+1,SEARCH("/",C455)-SEARCH("x",C455)-1)*1,"") ->  | K455: =IFERROR(IF((G455+H455)>=(I455+28),G455&"+"&H455&">="&I455&"+28",G455&"+"&H455&"<"&I455&"+28"),"") ->  | L455: =IF(K455="","",IF(IFERROR(FIND(">",K455),0)>0,"ДА","НЕТ")) ->  | M455: =IFERROR(IF((F455+J455)<=(I455+G455),F455&"+"&J455&"<="&I455&"+"&G455,F455&"+"&J455&">"&I455&"+"&G455),"") ->  | N455: =IF(M455="","",IF(IFERROR(FIND("<",M455),0)>0,"ДА","НЕТ")) -> 
H518: =IFERROR(MID(C518,SEARCH("/",C518)+1,SEARCH("x",C518,SEARCH("x",C518)+1)-SEARCH("/",C518)-1)*1,"") ->  | I518: =IFERROR(MID(C518,SEARCH("x",C518,SEARCH("x",C518)+1)+1,SEARCH("x",C518,SEARCH("x",C518,SEARCH("x",C518)+1)+1)-SEARCH("x",C518,SEARCH("x",C518)+1)-1)*1,"") ->  | J518: =IFERROR(MID(C518,SEARCH("x",C518,SEARCH("x",C518,SEARCH("x",C518)+1)+1)+1,LEN(C518)-SEARCH("x",C518,SEARCH("x",C518,SEARCH("x",C518)+1)+1))*1,"") -> 
E519: =IF(ISBLANK(D519),"",ABS($D$2-D519)) ->  | F519: =IFERROR(MID(C519,1,SEARCH("x",C519)-1)*1,"") ->  | G519: =IFERROR(MID(C519,SEARCH("x",C519)+1,SEARCH("/",C519)-SEARCH("x",C519)-1)*1,"") ->  | K519: =IFERROR(IF((G519+H519)>=(I519+28),G519&"+"&H519&">="&I519&"+28",G519&"+"&H519&"<"&I519&"+28"),"") ->  | L519: =IF(K519="","",IF(IFERROR(FIND(">",K519),0)>0,"ДА","НЕТ")) ->  | M519: =IFERROR(IF((F519+J519)<=(I519+G519),F519&"+"&J519&"<="&I519&"+"&G519,F519&"+"&J519&">"&I519&"+"&G519),"") ->  | N519: =IF(M519="","",IF(IFERROR(FIND("<",M519),0)>0,"ДА","НЕТ")) -> 
H582: =IFERROR(MID(C582,SEARCH("/",C582)+1,SEARCH("x",C582,SEARCH("x",C582)+1)-SEARCH("/",C582)-1)*1,"") ->  | I582: =IFERROR(MID(C582,SEARCH("x",C582,SEARCH("x",C582)+1)+1,SEARCH("x",C582,SEARCH("x",C582,SEARCH("x",C582)+1)+1)-SEARCH("x",C582,SEARCH("x",C582)+1)-1)*1,"") ->  | J582: =IFERROR(MID(C582,SEARCH("x",C582,SEARCH("x",C582,SEARCH("x",C582)+1)+1)+1,LEN(C582)-SEARCH("x",C582,SEARCH("x",C582,SEARCH("x",C582)+1)+1))*1,"") -> 
E583: =IF(ISBLANK(D583),"",ABS($D$2-D583)) ->  | F583: =IFERROR(MID(C583,1,SEARCH("x",C583)-1)*1,"") ->  | G583: =IFERROR(MID(C583,SEARCH("x",C583)+1,SEARCH("/",C583)-SEARCH("x",C583)-1)*1,"") ->  | K583: =IFERROR(IF((G583+H583)>=(I583+28),G583&"+"&H583&">="&I583&"+28",G583&"+"&H583&"<"&I583&"+28"),"") ->  | L583: =IF(K583="","",IF(IFERROR(FIND(">",K583),0)>0,"ДА","НЕТ")) ->  | M583: =IFERROR(IF((F583+J583)<=(I583+G583),F583&"+"&J583&"<="&I583&"+"&G583,F583&"+"&J583&">"&I583&"+"&G583),"") ->  | N583: =IF(M583="","",IF(IFERROR(FIND("<",M583),0)>0,"ДА","НЕТ")) -> 
H646: =IFERROR(MID(C646,SEARCH("/",C646)+1,SEARCH("x",C646,SEARCH("x",C646)+1)-SEARCH("/",C646)-1)*1,"") ->  | I646: =IFERROR(MID(C646,SEARCH("x",C646,SEARCH("x",C646)+1)+1,SEARCH("x",C646,SEARCH("x",C646,SEARCH("x",C646)+1)+1)-SEARCH("x",C646,SEARCH("x",C646)+1)-1)*1,"") ->  | J646: =IFERROR(MID(C646,SEARCH("x",C646,SEARCH("x",C646,SEARCH("x",C646)+1)+1)+1,LEN(C646)-SEARCH("x",C646,SEARCH("x",C646,SEARCH("x",C646)+1)+1))*1,"") -> 
E647: =IF(ISBLANK(D647),"",ABS($D$2-D647)) ->  | F647: =IFERROR(MID(C647,1,SEARCH("x",C647)-1)*1,"") ->  | G647: =IFERROR(MID(C647,SEARCH("x",C647)+1,SEARCH("/",C647)-SEARCH("x",C647)-1)*1,"") ->  | K647: =IFERROR(IF((G647+H647)>=(I647+28),G647&"+"&H647&">="&I647&"+28",G647&"+"&H647&"<"&I647&"+28"),"") ->  | L647: =IF(K647="","",IF(IFERROR(FIND(">",K647),0)>0,"ДА","НЕТ")) ->  | M647: =IFERROR(IF((F647+J647)<=(I647+G647),F647&"+"&J647&"<="&I647&"+"&G647,F647&"+"&J647&">"&I647&"+"&G647),"") ->  | N647: =IF(M647="","",IF(IFERROR(FIND("<",M647),0)>0,"ДА","НЕТ")) -> 
H710: =IFERROR(MID(C710,SEARCH("/",C710)+1,SEARCH("x",C710,SEARCH("x",C710)+1)-SEARCH("/",C710)-1)*1,"") ->  | I710: =IFERROR(MID(C710,SEARCH("x",C710,SEARCH("x",C710)+1)+1,SEARCH("x",C710,SEARCH("x",C710,SEARCH("x",C710)+1)+1)-SEARCH("x",C710,SEARCH("x",C710)+1)-1)*1,"") ->  | J710: =IFERROR(MID(C710,SEARCH("x",C710,SEARCH("x",C710,SEARCH("x",C710)+1)+1)+1,LEN(C710)-SEARCH("x",C710,SEARCH("x",C710,SEARCH("x",C710)+1)+1))*1,"") -> 
E711: =IF(ISBLANK(D711),"",ABS($D$2-D711)) ->  | F711: =IFERROR(MID(C711,1,SEARCH("x",C711)-1)*1,"") ->  | G711: =IFERROR(MID(C711,SEARCH("x",C711)+1,SEARCH("/",C711)-SEARCH("x",C711)-1)*1,"") ->  | K711: =IFERROR(IF((G711+H711)>=(I711+28),G711&"+"&H711&">="&I711&"+28",G711&"+"&H711&"<"&I711&"+28"),"") ->  | L711: =IF(K711="","",IF(IFERROR(FIND(">",K711),0)>0,"ДА","НЕТ")) ->  | M711: =IFERROR(IF((F711+J711)<=(I711+G711),F711&"+"&J711&"<="&I711&"+"&G711,F711&"+"&J711&">"&I711&"+"&G711),"") ->  | N711: =IF(M711="","",IF(IFERROR(FIND("<",M711),0)>0,"ДА","НЕТ")) -> 
H774: =IFERROR(MID(C774,SEARCH("/",C774)+1,SEARCH("x",C774,SEARCH("x",C774)+1)-SEARCH("/",C774)-1)*1,"") ->  | I774: =IFERROR(MID(C774,SEARCH("x",C774,SEARCH("x",C774)+1)+1,SEARCH("x",C774,SEARCH("x",C774,SEARCH("x",C774)+1)+1)-SEARCH("x",C774,SEARCH("x",C774)+1)-1)*1,"") ->  | J774: =IFERROR(MID(C774,SEARCH("x",C774,SEARCH("x",C774,SEARCH("x",C774)+1)+1)+1,LEN(C774)-SEARCH("x",C774,SEARCH("x",C774,SEARCH("x",C774)+1)+1))*1,"") -> 
E775: =IF(ISBLANK(D775),"",ABS($D$2-D775)) ->  | F775: =IFERROR(MID(C775,1,SEARCH("x",C775)-1)*1,"") ->  | G775: =IFERROR(MID(C775,SEARCH("x",C775)+1,SEARCH("/",C775)-SEARCH("x",C775)-1)*1,"") ->  | K775: =IFERROR(IF((G775+H775)>=(I775+28),G775&"+"&H775&">="&I775&"+28",G775&"+"&H775&"<"&I775&"+28"),"") ->  | L775: =IF(K775="","",IF(IFERROR(FIND(">",K775),0)>0,"ДА","НЕТ")) ->  | M775: =IFERROR(IF((F775+J775)<=(I775+G775),F775&"+"&J775&"<="&I775&"+"&G775,F775&"+"&J775&">"&I775&"+"&G775),"") ->  | N775: =IF(M775="","",IF(IFERROR(FIND("<",M775),0)>0,"ДА","НЕТ")) -> 
H838: =IFERROR(MID(C838,SEARCH("/",C838)+1,SEARCH("x",C838,SEARCH("x",C838)+1)-SEARCH("/",C838)-1)*1,"") ->  | I838: =IFERROR(MID(C838,SEARCH("x",C838,SEARCH("x",C838)+1)+1,SEARCH("x",C838,SEARCH("x",C838,SEARCH("x",C838)+1)+1)-SEARCH("x",C838,SEARCH("x",C838)+1)-1)*1,"") ->  | J838: =IFERROR(MID(C838,SEARCH("x",C838,SEARCH("x",C838,SEARCH("x",C838)+1)+1)+1,LEN(C838)-SEARCH("x",C838,SEARCH("x",C838,SEARCH("x",C838)+1)+1))*1,"") -> 
E839: =IF(ISBLANK(D839),"",ABS($D$2-D839)) ->  | F839: =IFERROR(MID(C839,1,SEARCH("x",C839)-1)*1,"") ->  | G839: =IFERROR(MID(C839,SEARCH("x",C839)+1,SEARCH("/",C839)-SEARCH("x",C839)-1)*1,"") ->  | K839: =IFERROR(IF((G839+H839)>=(I839+28),G839&"+"&H839&">="&I839&"+28",G839&"+"&H839&"<"&I839&"+28"),"") ->  | L839: =IF(K839="","",IF(IFERROR(FIND(">",K839),0)>0,"ДА","НЕТ")) ->  | M839: =IFERROR(IF((F839+J839)<=(I839+G839),F839&"+"&J839&"<="&I839&"+"&G839,F839&"+"&J839&">"&I839&"+"&G839),"") ->  | N839: =IF(M839="","",IF(IFERROR(FIND("<",M839),0)>0,"ДА","НЕТ")) -> 
H902: =IFERROR(MID(C902,SEARCH("/",C902)+1,SEARCH("x",C902,SEARCH("x",C902)+1)-SEARCH("/",C902)-1)*1,"") ->  | I902: =IFERROR(MID(C902,SEARCH("x",C902,SEARCH("x",C902)+1)+1,SEARCH("x",C902,SEARCH("x",C902,SEARCH("x",C902)+1)+1)-SEARCH("x",C902,SEARCH("x",C902)+1)-1)*1,"") ->  | J902: =IFERROR(MID(C902,SEARCH("x",C902,SEARCH("x",C902,SEARCH("x",C902)+1)+1)+1,LEN(C902)-SEARCH("x",C902,SEARCH("x",C902,SEARCH("x",C902)+1)+1))*1,"") -> 
E903: =IF(ISBLANK(D903),"",ABS($D$2-D903)) ->  | F903: =IFERROR(MID(C903,1,SEARCH("x",C903)-1)*1,"") ->  | G903: =IFERROR(MID(C903,SEARCH("x",C903)+1,SEARCH("/",C903)-SEARCH("x",C903)-1)*1,"") ->  | K903: =IFERROR(IF((G903+H903)>=(I903+28),G903&"+"&H903&">="&I903&"+28",G903&"+"&H903&"<"&I903&"+28"),"") ->  | L903: =IF(K903="","",IF(IFERROR(FIND(">",K903),0)>0,"ДА","НЕТ")) ->  | M903: =IFERROR(IF((F903+J903)<=(I903+G903),F903&"+"&J903&"<="&I903&"+"&G903,F903&"+"&J903&">"&I903&"+"&G903),"") ->  | N903: =IF(M903="","",IF(IFERROR(FIND("<",M903),0)>0,"ДА","НЕТ")) -> 
H966: =IFERROR(MID(C966,SEARCH("/",C966)+1,SEARCH("x",C966,SEARCH("x",C966)+1)-SEARCH("/",C966)-1)*1,"") ->  | I966: =IFERROR(MID(C966,SEARCH("x",C966,SEARCH("x",C966)+1)+1,SEARCH("x",C966,SEARCH("x",C966,SEARCH("x",C966)+1)+1)-SEARCH("x",C966,SEARCH("x",C966)+1)-1)*1,"") ->  | J966: =IFERROR(MID(C966,SEARCH("x",C966,SEARCH("x",C966,SEARCH("x",C966)+1)+1)+1,LEN(C966)-SEARCH("x",C966,SEARCH("x",C966,SEARCH("x",C966)+1)+1))*1,"") -> 
E967: =IF(ISBLANK(D967),"",ABS($D$2-D967)) ->  | F967: =IFERROR(MID(C967,1,SEARCH("x",C967)-1)*1,"") ->  | G967: =IFERROR(MID(C967,SEARCH("x",C967)+1,SEARCH("/",C967)-SEARCH("x",C967)-1)*1,"") ->  | K967: =IFERROR(IF((G967+H967)>=(I967+28),G967&"+"&H967&">="&I967&"+28",G967&"+"&H967&"<"&I967&"+28"),"") ->  | L967: =IF(K967="","",IF(IFERROR(FIND(">",K967),0)>0,"ДА","НЕТ")) ->  | M967: =IFERROR(IF((F967+J967)<=(I967+G967),F967&"+"&J967&"<="&I967&"+"&G967,F967&"+"&J967&">"&I967&"+"&G967),"") ->  | N967: =IF(M967="","",IF(IFERROR(FIND("<",M967),0)>0,"ДА","НЕТ")) -> 

Sheet Лист2 (hidden)
A1: ПРОГРАММА УСКОРЕННОГО ПОДБОРА ЦЕЛЫХ ЧИСЕЛ | E1: =IF(C12=0,D6,C12) -> 585
A2: ЧИСЛИТЕЛЯ И ЗНАМЕНАТЕЛЯ, ДЛЯ ПОДБОРА ЧИСЕЛ | E2: 37
A3: ЗУБЬЕВ СМЕННЫХ ШЕСТЕРЕН ГИТАРЫ "REISHAUER" | E3: =E1+E2 -> 622
A4: ************************rasg.cal*********************** | E4: =ROUND(E3*C6,0) -> 75
A5: ВВОД ДАННЫХ: | E5: =E4/E3 -> 0.1205787781
A6: Передаточное отношение | B6: Uo = | C6: =C28 -> 0.12038 | D6: =C8 -> 30 | E6: =ABS(C6-E5) -> 0.000198778135
A7: Допускаемая погрешность | B7: = | C7: 2e-05 | D7: =C9^2 -> 15876
A8: Минимальное число зубьев шестерни в наборе | B8: = | C8: 30 | D8: =C6-C7 -> 0.12036
A9: Максимальное число зубьев шестерни в наборе | B9: = | C9: 126 | D9: =C6+C7 -> 0.1204
A10: РЕЗУЛЬТАТЫ СЧЁТА:
A11: Числитель | B11: = | C11: 95
A12: Знаменатель | B12: = | C12: 585
A13: Передаточное отношение из подбора | B13: Up = | C13: =C11/C12 -> 0.1623931624
A14: Погрешность подбора | B14: = | C14: =C6-C13 -> -0.04201316239
A17: 3А662 - полуавтомат для заточки червячных фрез
A18: наличие шестерен (комплект 39 штук)
A19: 30 (2), 31, 32, 33, 34, 35, 36, 38, 39, 40, 41, 42, 43, 47,
A20: 50, 58, 60, 62, 63, 64, 65, 69, 70, 72, 74, 76, 80, 88, 90
A21: 95, 99, 100, 104, 108, 120, 124, 125, 126
A23: Настройка станка на шаг стружечной канавки (см. схему I…VI)
A24: Для шагов отличных от ГОСТ 9324 - по формуле:
A25: I = (d*b)/(a*c*e) = H/50000 | D25: Граничные условия
A26: При левых стружечных канавках в гитару встраиваются | D26: сборки шестерен:
A27: промежуточные шестерни. При правых - без | C27: 6019 | D27: a+b>=c+28 | F27: a*b / c*d*e
A28: промеж. шестерен, или с двумя N1 и N2. | B28: H/50000= | C28: =C27/50000 -> 0.12038 | D28: b+e<=c+dv
F29: c+b>=d+28
A30: 2. Уравнение кинематического баланса | F30: b+e<=d+a
A31: цепи спиралеобразования:
A32: Н=1оборот фрезы*132*i*iцепи*PI*mn*z | B32: H= | C32: =132*C28*C36*PI()*C39*C38 -> 6018.35663
A34: где Н - шаг винтовой стружечной канавки,
A35: i - передаточное отн. гитары сменных шестерен | C35: =C28 -> 0.12038
A36: iцепи = (30*71*35*28)/(29*99*21*28) - | C36: =(30*71*35*28)/(29*99*21*28) -> 1.236502961
A37: - передаточное отнош. цепи спиралеобразования
A38: z = 39 - число зубьев реечной шестерни | C38: 39
A39: mn = 2,5 - нормальный модуль реечной шестерни | C39: 2.5
